bitfinex/quotes_ETHUSD_20260227
["timestamp","ask_amount","ask_price","bid_price","bid_amount"]
[1772187811437,0.001,1995.7,1995.2,2.79582424]
[1772187812259,2.51416273,1995.5,1994.9,4.04897213]
[1772187812559,2.51416273,1995.5,1994.6,2.79692424]
[1772187812560,1.25288162,1995.4,1994.6,2.79692424]
[1772187812728,1.25288162,1995.4,1995.0,0.0011]
[1772187813562,1.25288162,1995.4,1994.9,0.0011]
[1772187813874,1.2537083,1995.7,1994.9,2.79692424]
[1772187815463,0.001,1995.7,1994.9,4.05007266]
[1772187815669,2.51516273,1995.7,1994.9,4.05007266]
[1772187817872,4.06303043,1995.6,1994.9,0.0011]
[1772187818550,4.06303043,1995.6,1994.9,2.77782193]
[1772187818951,4.06303043,1995.6,1994.9,4.03101427]
[1772187819676,2.81027437,1995.5,1994.9,0.0011]
[1772187819877,1.25288162,1995.4,1994.9,0.0011]
[1772187820676,0.001,1995.7,1994.9,2.69329073]
[1772187821045,1.25369979,1995.7,1994.9,2.69329073]
[1772187821746,0.001,1995.7,1994.9,2.69329073]
[1772187822163,0.001,1995.7,1995.0,1.25313283]
[1772187822474,0.001,1995.7,1995.1,2.69219073]
[1772187823670,0.001,1995.9,1995.1,2.69219073]
[1772187824444,0.001,1995.9,1995.3,2.69219073]
[1772187825075,2.89121696,1995.9,1995.2,1.25300721]
[1772187825287,0.001,1995.6,1995.3,2.69219073]
[1772187825895,0.001,1995.9,1995.3,2.69219073]
[1772187826286,5.0096287,1996.6,1995.6,1.25275606]
[1772187826494,5.0096287,1996.6,1995.7,2.69219073]
[1772187829166,5.0096287,1996.6,1995.8,3.94482125]
[1772187830483,5.0096287,1996.6,1995.9,2.69219073]
[1772187831290,5.0096287,1996.6,1996.0,1.25250501]
[1772187831496,1.25312861,1996.6,1996.0,1.25250501]
[1772187832396,1.25312861,1996.6,1996.1,2.69219073]
[1772187832868,1.25312861,1996.6,1995.9,3.94471358]
[1772187833196,1.25312861,1996.6,1996.0,2.69219073]
[1772187833493,0.001,1996.6,1995.9,1.25252775]
[1772187833687,0.001,1996.6,1996.0,2.69219073]
[1772187835366,0.001,1996.6,1996.0,1.25245905]
[1772187835583,0.001,1996.6,1996.1,2.69219073]
[1772187837113,0.001,1996.5,1996.1,2.69219073]
[1772187837395,0.001,1996.5,1996.0,2.69219073]
[1772187837590,1.25319133,1996.5,1996.0,2.69219073]
[1772187837790,7.8997386,1996.6,1995.9,2.69219073]
[1772187837791,0.001,1996.6,1995.9,2.69219073]
[1772187838495,1.25314856,1996.6,1995.9,2.69219073]
[1772187838694,0.001,1996.6,1995.9,2.69219073]
[1772187839472,0.001,1996.6,1996.1,2.69219073]
[1772187841546,0.001,1996.6,1996.2,2.69219073]
[1772187843634,0.001,1996.6,1996.2,3.94452167]
[1772187845330,0.001,1996.6,1996.3,2.69219073]
[1772187845736,0.001,1996.6,1996.4,3.94444478]
[1772187846107,0.001,1996.6,1996.5,2.69219073]
[1772187846512,4.14193675,1997.3,1996.5,2.69219073]
[1772187846939,2.89021696,1997.3,1996.5,2.69219073]
[1772187847770,2.89021696,1997.3,1996.7,2.69219073]
[1772187848641,2.89021696,1997.5,1996.7,2.69219073]
[1772187849246,6.40884254,1997.2,1996.4,2.69219073]
[1772187849554,2.89021696,1997.1,1996.3,1.25337123]
[1772187849755,2.89021696,1996.9,1996.3,2.69329073]
[1772187850329,1.25186691,1997.1,1996.3,2.69329073]
[1772187852638,1.25278875,1997.2,1996.5,2.75237971]
[1772187853554,1.25275687,1997.2,1996.5,2.75237971]
[1772187854049,0.001,1997.2,1996.5,2.75237971]
[1772187854639,0.001,1997.2,1996.7,2.75237971]
[1772187856560,0.001,1997.2,1996.4,1.25223307]
[1772187856561,2.71248741,1997.2,1996.4,1.25223307]
[1772187856739,2.71148741,1996.9,1996.3,1.25338797]
[1772187857145,2.71148741,1996.8,1996.3,0.0011]
[1772187859067,2.71148741,1996.5,1995.8,0.0011]
[1772187861251,2.71148741,1996.2,1995.8,0.0011]
[1772187862047,2.71148741,1996.2,1995.9,0.0011]
[1772187862243,2.71148741,1996.2,1995.8,0.0011]
[1772187862443,2.75825405,1996.4,1995.5,0.0011]
[1772187862444,2.71148741,1995.9,1995.6,0.0011]
[1772187863239,1.25263052,1995.8,1995.6,0.0011]
[1772187863558,3.96411793,1995.8,1995.5,0.0011]
[1772187863764,2.71148741,1995.7,1995.0,1.25418608]
[1772187864370,2.71148741,1995.7,1995.0,2.75347971]
[1772187864568,2.71148741,1995.6,1995.0,4.00660891]
[1772187865557,2.71148741,1996.0,1995.1,2.75237971]
[1772187867768,2.71148741,1996.0,1995.3,2.75237971]
[1772187867769,1.25256776,1995.9,1995.3,2.75237971]
[1772187869873,1.25256776,1995.9,1995.4,1.25288162]
[1772187870372,2.71148741,1996.2,1995.5,2.75237971]
[1772187871281,1.25231678,1996.3,1995.5,2.75237971]
[1772187873383,1.25231678,1996.3,1995.5,4.0051358]
[1772187873562,1.25231678,1996.3,1995.6,2.75237971]
[1772187874292,1.25231678,1996.3,1995.6,2.75347971]
[1772187875589,2.71148741,1996.2,1995.6,4.00622081]
[1772187875771,2.71148741,1996.2,1995.7,2.75237971]
[1772187876176,2.71148741,1996.3,1995.7,2.75237971]
[1772187876381,3.51762558,1996.2,1995.6,0.0011]
[1772187876571,2.71148741,1996.1,1995.5,0.0011]
[1772187877480,2.71148741,1996.1,1995.5,2.75347971]
[1772187877481,3.96394221,1996.1,1995.5,2.75347971]
[1772187879297,2.8409939,1996.0,1995.5,0.0011]
[1772187879793,4.09349891,1996.0,1995.5,0.0011]
[1772187881295,2.8409939,1996.0,1995.5,0.0011]
[1772187881466,4.0935096,1996.0,1995.5,2.63243922]
[1772187881668,2.8409939,1996.0,1995.6,1.25275606]
[1772187882270,3.98428731,1996.3,1995.7,2.63133922]
[1772187882693,2.73195042,1996.3,1995.7,2.63133922]
[1772187882900,1.25326173,1996.4,1995.7,2.63133922]
[1772187883715,1.25326173,1996.4,1995.8,1.25263052]
[1772187883873,1.25326173,1996.4,1995.8,3.88396974]
[1772187884075,3.98521215,1996.4,1995.8,3.88396974]
[1772187886506,3.98521215,1996.4,1995.9,2.63133922]
[1772187886720,0.001,1996.3,1995.9,2.63133922]
[1772187887008,0.001,1996.3,1995.7,3.88402891]
[1772187887009,2.73295042,1996.3,1995.7,3.88402891]
[1772187887489,2.73295042,1996.3,1995.6,1.25380656]
[1772187888291,3.98432994,1996.2,1995.6,3.88514578]
[1772187888598,3.98432994,1996.2,1995.7,2.63133922]
[1772187888792,1.25237952,1996.2,1995.7,2.63133922]
[1772187889501,1.25331678,1996.3,1995.7,2.63133922]
[1772187890571,1.25331678,1996.3,1995.8,2.63133922]
[1772187891699,0.001,1996.3,1995.8,2.63133922]
[1772187892588,0.001,1996.3,1995.8,3.88394318]
[1772187893674,0.001,1996.3,1995.9,2.63133922]
[1772187896103,0.001,1996.3,1995.9,3.88386397]
[1772187897207,0.001,1996.3,1995.9,2.63133922]
[1772187897610,0.001,1996.3,1996.0,2.63133922]
[1772187899087,0.001,1996.2,1996.0,2.63133922]
[1772187899293,0.001,1996.2,1996.1,3.88378148]
[1772187899494,0.001,1996.2,1996.1,1.25244226]
[1772187899696,0.001,1996.2,1996.0,3.88384423]
[1772187900431,0.001,1996.2,1996.1,2.63133922]
[1772187900590,0.001,1996.4,1996.1,2.63133922]
[1772187901287,0.001,1996.4,1996.2,2.63133922]
[1772187902220,0.50248682,1996.9,1996.2,2.63133922]
[1772187902388,0.50248682,1997.1,1996.4,2.63133922]
[1772187902584,0.001,1997.2,1996.6,2.63133922]
[1772187902917,0.001,1997.2,1996.6,2.6259898]
[1772187903298,0.001,1997.2,1996.7,3.88340512]
[1772187903687,0.001,1997.2,1996.8,2.63133922]
[1772187906195,2.73295042,1997.2,1996.2,2.63133922]
[1772187906517,2.73295042,1997.2,1996.3,2.63133922]
[1772187906993,0.001,1997.2,1996.3,2.63133922]
[1772187908112,1.2519324,1997.0,1996.4,2.63133922]
[1772187908312,3.98473783,1997.2,1996.4,2.63133922]
[1772187909109,1.25278741,1997.2,1996.4,2.63133922]
[1772187909491,0.001,1997.2,1996.4,2.63133922]
[1772187910098,0.001,1997.2,1996.6,2.62618484]
[1772187911307,0.001,1997.1,1996.6,2.62618484]
[1772187912524,0.001,1997.1,1996.8,2.62618484]
[1772187912930,2.79024087,1997.5,1996.8,2.62618484]
[1772187913329,2.79024087,1997.4,1996.8,2.62618484]
[1772187913628,1.25154661,1997.6,1996.6,2.62618484]
[1772187913629,2.79024087,1997.2,1996.6,2.62618484]
[1772187914518,2.79024087,1997.2,1996.7,1.2520659]
[1772187915216,4.04200139,1997.2,1996.7,1.2520659]
[1772187915730,2.79024087,1997.2,1996.7,1.2520659]
[1772187916108,2.79024087,1997.1,1996.4,0.0011]
[1772187916327,2.79024087,1997.1,1996.5,1.25219133]
[1772187917032,2.79024087,1997.1,1996.5,2.62618484]
[1772187917233,4.0420599,1997.1,1996.5,2.62618484]
[1772187917536,4.0420599,1997.1,1996.4,0.0011]
[1772187917537,2.79024087,1997.0,1996.4,0.0011]
[1772187918913,4.04215795,1997.0,1996.5,1.25219133]
[1772187919930,2.79024087,1997.0,1996.5,1.25219133]
[1772187920135,2.79024087,1997.0,1996.5,3.87837617]
[1772187920734,4.04212639,1997.0,1996.5,3.87837617]
[1772187920940,2.79024087,1997.0,1996.5,3.87837617]
[1772187922039,1.25184674,1997.1,1996.6,2.62618484]
[1772187922529,7.7973799,1997.2,1996.6,2.62618484]
[1772187922530,4.04201945,1997.2,1996.6,2.62618484]
[1772187922716,2.79024087,1997.1,1996.6,2.62618484]
[1772187923123,4.04193202,1997.3,1996.6,2.62618484]
[1772187923344,2.79024087,1997.2,1996.6,2.62618484]
[1772187923531,2.79024087,1997.2,1996.6,2.62728484]
[1772187923718,0.001,1997.1,1996.6,2.62728484]
[1772187924039,0.001,1997.1,1996.7,3.87825074]
[1772187924338,0.001,1997.1,1996.6,1.25322488]
[1772187924339,5.30205667,1997.1,1996.6,1.25322488]
[1772187924639,2.79124087,1997.1,1996.6,1.25322488]
[1772187925029,2.79124087,1997.1,1996.6,0.0011]
[1772187925430,2.79024087,1996.8,1996.5,0.0011]
[1772187925624,2.79024087,1996.8,1996.4,0.0011]
[1772187926348,2.79024087,1996.7,1996.4,0.0011]
[1772187926712,1.25200703,1996.8,1996.4,0.0011]
[1772187926920,2.79024087,1996.9,1996.4,0.0011]
[1772187927243,1.25188689,1997.0,1996.4,2.62728484]
[1772187927543,4.04212776,1997.0,1996.4,2.62728484]
[1772187929045,1.25188689,1997.0,1996.4,3.87950114]
[1772187929214,2.79024087,1996.7,1996.3,0.0011]
[1772187929417,1.25188689,1997.0,1996.1,0.0011]
[1772187929418,2.79024087,1996.5,1996.1,0.0011]
[1772187930847,5.30105667,1996.8,1996.2,2.62618484]
[1772187931045,5.30105667,1996.8,1996.1,1.25353791]
[1772187931046,1.2520659,1996.7,1996.1,1.25353791]
[1772187931348,2.79024087,1996.6,1996.1,1.25353791]
[1772187932948,2.79024087,1996.7,1996.1,3.87972275]
[1772187933118,1.25212861,1996.6,1996.1,3.87972275]
[1772187933318,2.79024087,1996.7,1996.1,3.87972275]
[1772187933543,2.79024087,1996.6,1996.1,3.87972275]
[1772187933721,2.79024087,1996.6,1996.1,1.25353791]
[1772187933916,2.79024087,1996.6,1996.1,1.25353423]
[1772187934126,2.79024087,1996.8,1996.2,2.62618484]
[1772187934330,2.79024087,1996.7,1996.2,2.62618484]
[1772187934631,2.79024087,1996.7,1996.1,1.25353423]
[1772187935153,4.04232494,1996.7,1996.1,1.25353423]
[1772187935353,2.79024087,1996.7,1996.1,1.25353423]
[1772187935549,4.04231071,1996.7,1996.1,1.25353423]
[1772187935754,2.79024087,1996.7,1996.1,1.25353423]
[1772187936256,2.79024087,1996.7,1996.2,0.0011]
[1772187936456,0.001,1996.5,1996.2,0.0011]
[1772187938039,2.60969612,1996.5,1996.1,0.0011]
[1772187938337,2.60869612,1996.3,1996.0,0.0011]
[1772187939659,2.60869612,1996.3,1995.9,0.0011]
[1772187939660,2.60869612,1996.1,1995.9,0.0011]
[1772187942244,2.60869612,1996.1,1995.5,0.0011]
[1772187942245,2.74726892,1996.0,1995.5,0.0011]
[1772187942663,2.74726892,1995.9,1995.4,0.0011]
[1772187944262,2.74726892,1995.7,1995.4,0.0011]
[1772187946032,4.27126892,1995.7,1995.4,0.0011]
[1772187947343,5.52396926,1995.7,1995.4,0.0011]
[1772187949564,4.27126892,1995.7,1995.4,0.0011]
[1772187949861,4.27126892,1995.7,1995.5,0.0011]
[1772187951069,5.52397284,1995.7,1995.5,0.0011]
[1772187951275,4.27126892,1995.7,1995.5,0.0011]
[1772187952847,1.524,1995.7,1995.5,2.63540035]
[1772187953046,2.74726892,1996.0,1995.5,2.63540035]
[1772187953967,2.74726892,1995.9,1995.5,3.88819243]
[1772187954358,5.53175648,1996.1,1995.5,3.88819243]
[1772187954870,2.74726892,1996.0,1995.5,3.88819243]
[1772187955954,2.74726892,1996.2,1995.7,3.88699364]
[1772187956143,5.53365631,1996.2,1995.7,3.88699364]
[1772187956544,2.74726892,1996.2,1995.8,2.63430035]
[1772187956872,1.534,1996.3,1995.8,2.63430035]
[1772187957375,2.74726892,1996.2,1995.7,1.25269329]
[1772187957579,2.74726892,1995.9,1995.4,0.0011]
[1772187958144,2.74726892,1995.7,1995.4,0.0011]
[1772187960646,3.99996801,1995.7,1995.4,0.0011]
[1772187961169,3.99996801,1995.7,1995.0,2.63540035]
[1772187961170,2.74726892,1995.5,1995.0,2.63540035]
[1772187961883,2.74726892,1995.5,1994.9,1.25424066]
[1772187961884,2.74726892,1995.5,1994.9,0.0011]
[1772187962057,2.74726892,1995.5,1995.4,0.0011]
[1772187962262,2.74726892,1995.5,1994.6,0.0011]
[1772187962263,2.74726892,1995.3,1994.6,0.0011]
[1772187962470,2.74726892,1995.1,1994.6,0.0011]
[1772187962664,2.74726892,1995.0,1994.6,0.0011]
[1772187962867,2.74726892,1994.8,1994.3,0.0011]
[1772187964566,2.74726892,1994.6,1994.3,0.0011]
[1772187966594,4.00071589,1994.5,1994.3,0.0011]
[1772187967299,4.00071589,1994.5,1994.2,0.0011]
[1772187968658,2.74726892,1994.4,1994.0,0.0011]
[1772187970759,5.01330257,1994.7,1994.0,2.76514512]
[1772187970760,4.01876368,1994.6,1994.0,2.76514512]
[1772187973903,2.76534024,1994.5,1994.0,2.76514512]
[1772187974103,2.76534024,1994.5,1994.1,0.0011]
[1772187975386,1.25350982,1994.4,1994.1,0.0011]
[1772187978389,4.01885006,1994.4,1993.9,2.76404512]
[1772187979804,2.76534024,1994.2,1993.8,0.0011]
[1772187980619,2.76534024,1994.2,1993.8,1.25496196]
[1772187980820,2.76534024,1994.2,1993.8,2.76514512]
[1772187981004,1.552,1994.3,1993.8,2.76514512]
[1772187981332,1.552,1994.5,1993.9,2.76404512]
[1772187981509,2.76534024,1994.6,1993.9,2.76404512]
[1772187981715,1.2543693,1994.7,1993.9,2.76404512]
[1772187981920,0.001,1994.7,1994.1,2.76404512]
[1772187982119,0.001,1994.7,1994.2,2.76404512]
[1772187982440,1.25432392,1994.7,1994.2,2.76404512]
[1772187982806,4.01966416,1994.7,1994.2,2.76404512]
[1772187983024,4.31734024,1995.1,1993.9,2.76404512]
[1772187983233,2.76534024,1995.1,1993.9,2.76404512]
[1772187983420,1.552,1995.0,1994.1,4.64372483]
[1772187983737,1.552,1995.0,1994.2,2.76404512]
[1772187983941,2.8049761,1995.3,1994.4,2.76404512]
[1772187984105,1.552,1995.3,1994.4,2.76404512]
[1772187984439,1.552,1995.4,1994.4,2.76404512]
[1772187985339,2.8047869,1995.6,1994.7,2.76404512]
[1772187985630,0.001,1995.6,1994.7,2.76404512]
[1772187986011,0.001,1995.6,1994.9,2.76404512]
[1772187986411,1.25256776,1995.9,1994.9,2.76404512]
[1772187986624,1.551,1995.8,1995.0,2.76404512]
[1772187987031,1.25256776,1995.9,1995.0,2.76404512]
[1772187987216,2.76534024,1995.8,1995.0,2.76404512]
[1772187987418,2.76534024,1995.7,1995.0,2.76404512]
[1772187988028,1.25275606,1995.6,1995.0,4.01714371]
[1772187988228,4.01807923,1995.7,1995.0,4.01714371]
[1772187988538,2.76534024,1995.6,1994.7,1.25328952]
[1772187990040,2.76534024,1995.6,1994.7,4.01733464]
[1772187990237,4.01814226,1995.6,1994.8,2.76404512]
[1772187990438,1.55,1995.5,1994.8,2.76404512]
[1772187990618,2.76534024,1995.5,1994.8,2.76404512]
[1772187990936,1.55,1995.4,1994.8,2.76404512]
[1772187992216,1.25294441,1995.3,1994.8,2.76404512]
[1772187992417,2.80292785,1995.4,1994.8,4.01730094]
[1772187992648,2.80292785,1995.4,1994.5,5.0137058]
[1772187992649,5.56826809,1995.4,1994.6,4.01738106]
[1772187992812,5.56826809,1995.4,1994.7,2.76404512]
[1772187993237,2.76534024,1995.3,1994.7,2.76404512]
[1772187994235,1.25300721,1995.2,1994.7,4.01732992]
[1772187994420,1.25300721,1995.2,1994.7,2.76404512]
[1772187994919,1.25300721,1995.2,1994.7,4.01735772]
[1772187995341,4.01834745,1995.2,1994.7,2.76404512]
[1772187995846,4.01834745,1995.2,1994.7,4.01735992]
[1772187996044,1.25297896,1995.3,1994.7,4.01735992]
[1772187996727,4.0183192,1995.3,1994.7,4.01735992]
[1772187998133,4.0183192,1995.3,1994.8,0.0011]
[1772187999353,4.01828877,1995.3,1994.8,0.0011]
[1772188000156,2.57166937,1995.2,1994.8,0.0011]
[1772188001969,3.82469785,1995.2,1994.8,0.0011]
[1772188002530,2.57166937,1995.2,1994.8,0.0011]
[1772188002844,1.25297663,1995.3,1994.8,2.69424453]
[1772188003153,3.824646,1995.3,1994.8,2.69424453]
[1772188004663,2.57166937,1995.2,1994.8,0.0011]
[1772188006471,2.57166937,1995.2,1994.7,0.0011]
[1772188006637,2.57166937,1995.0,1994.7,0.0011]
[1772188007141,2.57166937,1995.0,1994.5,0.0011]
[1772188009064,2.57166937,1994.8,1994.5,0.0011]
[1772188009282,1.56,1994.7,1994.5,0.0011]
[1772188010374,1.561,1994.9,1994.5,2.69424453]
[1772188010575,4.13266937,1994.9,1994.6,0.0011]
[1772188011071,3.82490542,1994.9,1994.6,0.0011]
[1772188011268,1.561,1994.8,1994.6,0.0011]
[1772188012172,2.57166937,1994.7,1994.6,0.0011]
[1772188012546,2.57166937,1994.7,1994.5,0.0011]
[1772188013245,1.25338413,1994.6,1994.5,0.0011]
[1772188018280,3.8250535,1994.6,1994.5,0.0011]
[1772188019277,3.8250535,1994.6,1994.3,0.0011]
[1772188019978,6.57405327,1994.8,1994.4,2.69314453]
[1772188019979,2.82425847,1994.8,1994.4,2.69314453]
[1772188020448,5.39592784,1994.8,1994.4,2.69314453]
[1772188020875,1.571,1994.8,1994.4,2.69314453]
[1772188021951,1.25322305,1994.9,1994.4,2.69314453]
[1772188022154,1.573,1995.1,1994.5,2.69314453]
[1772188022363,1.573,1995.0,1994.5,2.69424453]
[1772188022567,1.573,1995.0,1994.6,2.69314453]
[1772188022770,1.573,1995.0,1994.7,2.69314453]
[1772188023463,1.25288162,1995.4,1994.8,2.69314453]
[1772188023666,1.572,1995.2,1994.8,2.69314453]
[1772188024050,1.572,1995.2,1994.5,0.0011]
[1772188024051,1.572,1995.2,1994.9,2.69314453]
[1772188024258,2.8250205,1995.2,1994.9,2.69314453]
[1772188024977,1.25299515,1995.3,1994.9,2.69314453]
[1772188026597,3.82466452,1995.3,1994.9,2.69314453]
[1772188026760,0.001,1995.5,1995.0,2.69314453]
[1772188026761,2.57266937,1995.5,1995.0,2.69314453]
[1772188027086,0.001,1995.5,1995.0,2.69314453]
[1772188027966,0.001,1995.5,1995.2,2.69314453]
[1772188028685,0.001,1995.5,1995.2,3.9461489]
[1772188028895,2.57166937,1995.2,1994.5,0.0011]
[1772188029662,2.57166937,1995.4,1994.6,2.69314453]
[1772188030187,2.57166937,1995.4,1994.5,1.25453148]
[1772188030367,2.57166937,1995.4,1994.5,1.2545405]
[1772188030573,2.62452234,1995.2,1994.5,0.0011]
[1772188030874,3.87745413,1995.4,1994.5,2.60207455]
[1772188031493,2.62452234,1995.3,1994.5,2.60207455]
[1772188032584,1.25300721,1995.2,1994.6,2.60097455]
[1772188034593,1.25300721,1995.2,1994.6,2.60207455]
[1772188034797,1.25400721,1995.2,1994.6,3.85545777]
[1772188035003,1.25400721,1995.2,1994.7,2.60097455]
[1772188037594,2.62452234,1995.1,1994.6,0.0011]
[1772188037973,2.62452234,1995.1,1994.6,2.60207455]
[1772188040110,1.25313283,1995.0,1994.6,2.60207455]
[1772188040288,2.62452234,1994.9,1994.5,0.0011]
[1772188040489,2.62452234,1994.8,1994.2,0.0011]
[1772188040700,2.62452234,1994.6,1993.9,0.0011]
[1772188041007,2.01360077,1994.7,1993.0,2.69665557]
[1772188041008,2.62452234,1994.0,1993.0,2.69665557]
[1772188041208,2.62452234,1994.0,1992.9,2.60097455]
[1772188041506,2.62452234,1993.8,1992.6,2.60097455]
[1772188041711,2.62452234,1993.8,1992.5,0.0011]
[1772188041712,2.62452234,1993.4,1992.5,0.0011]
[1772188042012,2.62452234,1993.2,1992.5,0.0011]
[1772188042215,3.87884976,1993.1,1992.5,0.0011]
[1772188042387,2.62452234,1993.0,1992.5,0.0011]
[1772188043014,2.62452234,1992.8,1992.5,0.0011]
[1772188043315,2.62452234,1992.8,1991.5,3.85630972]
[1772188043482,2.62452234,1992.8,1991.6,2.60097455]
[1772188044197,3.87910155,1992.7,1991.7,2.60097455]
[1772188044390,2.62452234,1992.6,1991.7,2.60097455]
[1772188045520,2.62452234,1993.2,1992.2,2.60097455]
[1772188046387,2.62452234,1993.0,1992.6,0.0011]
[1772188048697,1.2544533,1992.9,1992.6,0.0011]
[1772188049699,7.64233557,1993.0,1992.6,0.0011]
[1772188049700,3.87894363,1993.0,1992.6,0.0011]
[1772188049932,3.87894363,1993.0,1991.9,2.60097455]
[1772188049933,2.62452234,1992.9,1991.9,2.60097455]
[1772188050106,1.25442129,1993.0,1992.1,2.60097455]
[1772188050452,3.87894363,1993.0,1992.1,2.60097455]
[1772188050628,2.62452234,1992.9,1991.8,3.85609395]
[1772188050926,2.62452234,1992.7,1991.9,2.60097455]
[1772188051498,1.25451625,1992.8,1992.1,2.60097455]
[1772188052305,7.6413628,1993.3,1992.3,2.60097455]
[1772188052507,2.01360077,1993.8,1992.5,2.60097455]
[1772188052508,1.25407574,1993.5,1992.5,2.60097455]
[1772188052712,1.25407574,1993.5,1992.7,2.60097455]
[1772188053415,5.01482883,1994.1,1992.6,1.25459678]
[1772188053416,3.8783465,1993.9,1992.9,2.60097455]
[1772188053620,1.25382416,1993.9,1993.1,2.60097455]
[1772188054126,5.01491494,1994.1,1993.1,2.60097455]
[1772188054322,1.25369841,1994.1,1993.1,2.60097455]
[1772188054629,1.25369841,1994.1,1992.6,5.28179832]
[1772188054630,1.25350982,1994.4,1993.5,2.60097455]
[1772188054856,7.87801598,1994.5,1993.7,2.60097455]
[1772188056117,5.25349364,1994.5,1993.8,2.60097455]
[1772188056420,1.25337506,1994.7,1993.8,2.60097455]
[1772188057110,1.25337506,1994.7,1993.9,1.25382416]
[1772188057313,1.25337506,1994.7,1993.9,3.85479871]
[1772188058635,1.25337506,1994.7,1994.0,2.65392914]
[1772188058998,1.25337506,1994.7,1994.1,1.25369841]
[1772188059193,1.25337506,1994.7,1994.0,7.66886457]
[1772188059194,1.25337506,1994.7,1994.0,3.90763897]
[1772188060930,7.02714137,1995.0,1994.2,1.25363554]
[1772188060931,5.01368965,1995.0,1994.2,1.25363554]
[1772188061137,5.01368965,1995.0,1994.2,3.83281393]
[1772188061305,7.56201257,1995.0,1994.2,3.83281393]
[1772188062914,2.54832292,1994.9,1994.2,3.83281393]
[1772188064039,0.001,1995.0,1994.3,2.57917839]
[1772188064933,1.25414645,1995.0,1994.3,2.57917839]
[1772188065111,0.001,1995.0,1994.4,1.25350982]
[1772188065960,0.001,1995.0,1994.5,4.59277916]
[1772188066106,0.001,1995.0,1994.4,3.83268821]
[1772188066306,0.001,1995.0,1994.5,2.57917839]
[1772188066705,0.001,1995.2,1994.5,2.57917839]
[1772188066905,1.25400829,1995.2,1994.5,2.57917839]
[1772188067106,0.001,1995.2,1994.6,1.25338413]
[1772188067306,2.54932292,1995.2,1994.5,1.25340059]
[1772188067531,2.54932292,1995.2,1994.4,1.2534623]
[1772188069135,2.54832292,1995.0,1994.4,1.2534623]
[1772188070222,2.54832292,1995.0,1993.9,3.83300255]
[1772188070832,1.25307002,1995.1,1994.3,2.57917839]
[1772188071033,0.001,1994.9,1994.3,2.57917839]
[1772188071207,0.001,1994.9,1994.4,1.25350982]
[1772188073744,0.001,1994.9,1994.3,3.83271133]
[1772188073955,0.001,1994.9,1994.4,2.57917839]
[1772188075625,0.001,1994.9,1994.5,1.25344697]
[1772188078114,0.001,1994.9,1994.4,2.57917839]
[1772188078318,0.001,1994.9,1994.4,3.83267821]
[1772188080502,0.001,1994.9,1994.0,2.81783996]
[1772188080503,2.56542056,1994.8,1994.0,2.46617783]
[1772188080744,2.56542056,1994.8,1993.6,2.46617783]
[1772188080946,2.56542056,1994.6,1993.4,3.72026489]
[1772188081646,2.56542056,1994.6,1993.5,2.46617783]
[1772188081950,2.56542056,1994.6,1993.1,5.01726381]
[1772188081951,2.56542056,1994.0,1993.0,2.46617783]
[1772188082247,2.56542056,1994.0,1993.2,2.46617783]
[1772188082447,3.81922388,1994.0,1993.2,2.46617783]
[1772188082828,3.81922388,1994.0,1993.6,0.0011]
[1772188083042,2.56542056,1993.9,1993.6,0.0011]
[1772188084469,1.25388704,1993.8,1993.6,0.0011]
[1772188084845,2.56542056,1993.7,1993.3,0.0011]
[1772188086683,2.56542056,1994.1,1993.3,2.46727783]
[1772188087852,2.56542056,1994.1,1993.3,0.0011]
[1772188088772,2.56542056,1993.9,1993.3,0.0011]
[1772188091164,2.65760011,1993.7,1993.3,0.0011]
[1772188092274,2.65760011,1993.7,1992.9,1.25440375]
[1772188094345,2.65760011,1993.5,1992.6,2.60732231]
[1772188095243,1.25413865,1993.4,1992.7,1.25457921]
[1772188095570,3.91153883,1993.8,1992.8,2.60732231]
[1772188095770,3.91253883,1993.8,1992.8,2.60732231]
[1772188095960,3.91253883,1993.8,1993.3,0.0011]
[1772188096160,0.001,1993.8,1993.3,0.0011]
[1772188096468,0.001,1993.8,1993.3,2.60842231]
[1772188097063,2.65760011,1994.2,1993.4,2.60732231]
[1772188097263,3.91123908,1994.2,1993.5,3.86139805]
[1772188097648,3.91124889,1994.2,1993.5,3.86139805]
[1772188097842,1.25364878,1994.2,1993.5,3.86139805]
[1772188098047,2.65760011,1994.1,1993.5,3.86139805]
[1772188098268,2.65760011,1994.1,1993.5,1.25407574]
[1772188099769,2.65760011,1993.9,1993.3,1.25526252]
[1772188100357,2.65760011,1993.8,1993.3,0.0011]
[1772188101174,2.65760011,1993.8,1993.3,1.25528948]
[1772188101370,2.65760011,1993.8,1993.3,0.0011]
[1772188102177,3.91155005,1993.7,1993.3,0.0011]
[1772188102485,2.65760011,1993.6,1993.1,0.0011]
[1772188102651,2.65760011,1993.5,1993.1,0.0011]
[1772188104156,2.65760011,1993.3,1993.1,0.0011]
[1772188104356,3.91167585,1993.5,1993.1,0.0011]
[1772188104666,2.65760011,1993.4,1993.1,0.0011]
[1772188106475,2.65760011,1993.2,1993.1,0.0011]
[1772188106677,2.65760011,1993.2,1992.5,1.25470514]
[1772188107566,2.65760011,1993.2,1992.5,3.86202745]
[1772188107746,2.65760011,1993.2,1992.6,0.0011]
[1772188108754,3.91191048,1993.2,1992.6,0.0011]
[1772188108956,3.91176164,1993.4,1992.6,2.60842231]
[1772188109461,2.65760011,1993.3,1992.6,2.60842231]
[1772188111161,3.91167585,1993.5,1992.8,2.60732231]
[1772188111361,2.65760011,1993.5,1992.8,2.60732231]
[1772188111563,2.65760011,1993.9,1992.8,2.60732231]
[1772188112151,0.001,1994.0,1993.0,2.60732231]
[1772188112352,1.25476694,1994.0,1993.0,2.60732231]
[1772188112754,0.001,1994.0,1993.0,2.60732231]
[1772188113051,0.001,1994.0,1993.2,2.60732231]
[1772188115319,0.001,1994.0,1993.3,1.25420157]
[1772188115517,0.001,1994.0,1993.4,2.60732231]
[1772188116217,2.65860011,1994.0,1993.4,2.60732231]
[1772188119827,1.25382416,1993.9,1993.4,3.86143665]
[1772188119991,1.25482416,1993.9,1993.4,3.86143665]
[1772188121223,1.25482416,1993.9,1993.4,2.60732231]
[1772188121719,1.25482416,1993.9,1993.4,3.86146086]
[1772188121918,3.69956937,1993.9,1993.3,1.25419314]
[1772188122289,3.69956937,1993.9,1993.3,3.76369243]
[1772188124594,3.69956937,1993.9,1993.4,2.50949929]
[1772188124917,0.001,1993.9,1993.4,2.50949929]
[1772188126517,0.001,1993.9,1993.5,3.76357503]
[1772188127528,2.44574521,1993.9,1993.5,1.25407574]
[1772188127903,0.001,1993.9,1993.5,3.76357503]
[1772188128920,0.001,1993.9,1993.4,1.25410578]